bitfinex-derivatives/quotes_BNBF0:USTF0_20250603
["timestamp","ask_amount","ask_price","bid_price","bid_amount"]
[1748930984199,0.90966889,666.89,666.62,0.300021]
[1748930984397,0.90966025,666.88,666.62,0.300021]
[1748930984596,0.90966025,666.87,666.62,0.300021]
[1748930984802,0.926,666.9,666.62,0.300021]
[1748930985196,0.90966787,666.89,666.62,0.300021]
[1748930985401,0.926,666.9,666.62,0.300021]
[1748930986197,2.41947431,666.9,666.62,0.300021]
[1748930986401,0.90975047,666.89,666.62,0.300021]
[1748930986605,0.90975047,666.88,666.62,0.300021]
[1748930986803,0.90974705,666.87,666.62,0.300021]
[1748930986997,0.90974705,666.86,666.62,0.300021]
[1748930987201,2.41947431,666.9,666.62,0.300021]
[1748930987202,1.49347431,666.88,666.62,0.300021]
[1748930987508,2.41947431,666.9,666.62,0.300021]
[1748930987699,0.90974904,666.89,666.62,0.300021]
[1748930987898,2.41947431,666.9,666.62,0.300021]
[1748930988799,0.9097475,666.89,666.62,0.300021]
[1748930988998,1.49347431,666.9,666.62,0.300021]
[1748930990409,0.90974736,666.89,666.62,0.300021]
[1748930990608,0.90974736,666.88,666.62,0.300021]
[1748930990908,0.90975253,666.87,666.62,0.300021]
[1748930991109,1.49347431,666.9,666.62,0.300021]
[1748930991308,2.40322684,666.89,666.62,0.300021]
[1748930991501,1.49347431,666.89,666.62,0.300021]
[1748930991701,1.027,666.88,666.62,0.300021]
[1748930993604,0.90974895,666.87,666.62,0.300021]
[1748930993804,0.90974903,666.86,666.62,0.300021]
[1748930994005,0.90974903,666.85,666.62,0.300021]
[1748930994204,1.027,666.88,666.62,0.300021]
[1748930994610,0.90974903,666.87,666.62,0.300021]
[1748930994813,1.027,666.88,666.62,0.300021]
[1748930995110,0.90974917,666.87,666.62,0.300021]
[1748930995310,1.027,666.88,666.62,0.300021]
[1748930996111,0.90974845,666.87,666.62,0.300021]
[1748930996312,1.027,666.88,666.62,0.300021]
[1748930997817,0.90975085,666.87,666.62,0.300021]
[1748930998014,0.90974893,666.86,666.62,0.300021]
[1748930998217,0.90974893,666.85,666.62,0.300021]
[1748930998517,0.90974962,666.84,666.62,0.300021]
[1748930998712,0.90975097,666.83,666.62,0.300021]
[1748930998911,1.027,666.88,666.62,0.300021]
[1748930999216,0.90975097,666.87,666.62,0.300021]
[1748930999416,0.90974994,666.86,666.62,0.300021]
[1748930999619,0.90974994,666.85,666.62,0.300021]
[1748930999922,1.027,666.88,666.62,0.300021]
[1748931000714,0.90974935,666.87,666.62,0.300021]
[1748931000916,1.027,666.88,666.62,0.300021]
[1748931003716,0.90979197,666.87,666.62,0.300021]
[1748931003917,1.027,666.88,666.62,0.300021]
[1748931004423,0.90979464,666.87,666.62,0.300021]
[1748931004623,1.027,666.88,666.62,0.300021]
[1748931006725,0.90994251,666.87,666.62,0.300021]
[1748931006918,0.90994251,666.86,666.62,0.300021]
[1748931007125,1.027,666.88,666.62,0.300021]
[1748931007721,1.36590675,666.87,666.62,0.300021]
[1748931007925,1.027,666.88,666.62,0.300021]
[1748931008625,1.36589707,666.87,666.62,0.300021]
[1748931008826,1.027,666.88,666.62,0.300021]
[1748931009123,0.45582513,666.87,666.62,0.300021]
[1748931009324,1.027,666.88,666.62,0.300021]
[1748931009522,0.45582747,666.87,666.62,0.300021]
[1748931009728,1.027,666.88,666.62,0.300021]
[1748931009925,0.91008953,666.87,666.62,0.300021]
[1748931010128,0.910084,666.86,666.62,0.300021]
[1748931010524,1.027,666.88,666.62,0.300021]
[1748931010723,0.91009097,666.87,666.62,0.300021]
[1748931010929,1.36591919,666.86,666.62,0.300021]
[1748931011133,1.027,666.88,666.62,0.300021]
[1748931012835,0.45574346,666.87,666.62,0.300021]
[1748931013034,1.027,666.88,666.62,0.300021]
[1748931013627,0.91003292,666.87,666.62,0.300021]
[1748931014534,0.91002929,666.86,666.62,0.300021]
[1748931014732,0.91003292,666.87,666.62,0.300021]
[1748931014934,0.91005062,666.85,666.62,0.300021]
[1748931015128,0.91003292,666.87,666.62,0.300021]
[1748931015335,1.3657935,666.86,666.62,0.300021]
[1748931015535,1.36581221,666.85,666.62,0.300021]
[1748931015832,0.91003292,666.87,666.62,0.300021]
[1748931016735,0.9100492,666.86,666.62,0.300021]
[1748931016932,0.9100492,666.85,666.62,0.300021]
[1748931017131,0.9100492,666.84,666.62,0.300021]
[1748931017334,0.91004761,666.83,666.62,0.300021]
[1748931017530,0.91004761,666.82,666.62,0.300021]
[1748931017836,0.91003292,666.87,666.62,0.300021]
[1748931020329,0.91004795,666.86,666.62,0.300021]
[1748931020534,0.91003292,666.87,666.62,0.300021]
[1748931020934,0.91004734,666.86,666.62,0.300021]
[1748931021235,0.91003292,666.87,666.62,0.300021]
[1748931021737,0.91004734,666.86,666.62,0.300021]
[1748931021937,0.91003292,666.87,666.62,0.300021]
[1748931022636,0.90968497,666.86,666.62,0.300021]
[1748931022835,0.91003292,666.87,666.62,0.300021]
[1748931023234,0.4557285,666.86,666.62,0.300021]
[1748931023439,0.91003292,666.87,666.62,0.300021]
[1748931024134,1.36541375,666.86,666.62,0.300021]
[1748931024334,0.91003292,666.87,666.62,0.300021]
[1748931024736,0.9096684,666.86,666.62,0.300021]
[1748931024935,0.9096684,666.85,666.62,0.300021]
[1748931025134,0.91003292,666.87,666.62,0.300021]
[1748931025338,1.114,666.84,666.62,0.300021]
[1748931026141,0.90966031,666.83,666.62,0.300021]
[1748931026342,0.9096494,666.82,666.62,0.300021]
[1748931026641,1.114,666.84,666.62,0.300021]
[1748931027842,0.90964543,666.83,666.62,0.300021]
[1748931028043,0.90964543,666.82,666.62,0.300021]
[1748931028339,1.114,666.84,666.62,0.300021]
[1748931028744,0.91015502,666.83,666.62,0.300021]
[1748931028942,1.114,666.84,666.62,0.300021]
[1748931029542,0.91015502,666.83,666.62,0.300021]
[1748931029739,1.114,666.84,666.62,0.300021]
[1748931030140,0.91015517,666.83,666.62,0.300021]
[1748931030343,0.91015517,666.82,666.62,0.300021]
[1748931030541,1.114,666.84,666.62,0.300021]
[1748931030542,0.91015517,666.81,666.62,0.300021]
[1748931030749,0.91015718,666.8,666.62,0.300021]
[1748931030944,1.114,666.84,666.62,0.300021]
[1748931031141,0.91015786,666.83,666.62,0.300021]
[1748931031342,0.91015786,666.82,666.62,0.300021]
[1748931031542,1.114,666.84,666.62,0.300021]
[1748931031745,0.91015786,666.83,666.62,0.300021]
[1748931031945,1.114,666.84,666.62,0.300021]
[1748931032341,0.91004181,666.83,666.62,0.300021]
[1748931032546,1.114,666.84,666.62,0.300021]
[1748931033246,0.91003545,666.83,666.62,0.300021]
[1748931033442,1.114,666.84,666.62,0.300021]
[1748931033946,0.91003499,666.83,666.62,0.300021]
[1748931034140,0.91003499,666.82,666.62,0.300021]
[1748931034342,1.114,666.84,666.62,0.300021]
[1748931034546,0.91003028,666.83,666.62,0.300021]
[1748931034740,0.91003038,666.82,666.62,0.300021]
[1748931034942,1.114,666.84,666.62,0.300021]
[1748931035342,0.90947748,666.83,666.62,0.300021]
[1748931035545,0.90947748,666.82,666.62,0.300021]
[1748931035741,1.114,666.84,666.62,0.300021]
[1748931036246,0.909482,666.83,666.62,0.300021]
[1748931036440,1.114,666.84,666.62,0.300021]
[1748931038448,0.90950075,666.83,666.62,0.300021]
[1748931038648,1.114,666.84,666.62,0.300021]
[1748931039251,0.9094426,666.83,666.62,0.300021]
[1748931039450,1.114,666.84,666.62,0.300021]
[1748931040848,0.90943547,666.83,666.62,0.300021]
[1748931041046,1.114,666.84,666.62,0.300021]
[1748931041551,0.90944166,666.83,666.62,0.300021]
[1748931043247,0.90950557,666.82,666.62,0.300021]
[1748931043648,0.90944166,666.83,666.62,0.300021]
[1748931045653,0.91000313,666.82,666.62,0.300021]
[1748931045852,0.90944166,666.83,666.62,0.300021]
[1748931046055,0.91000097,666.82,666.62,0.300021]
[1748931046250,0.90944166,666.83,666.62,0.300021]
[1748931046757,0.91000209,666.82,666.62,0.300021]
[1748931046958,0.90944166,666.83,666.62,0.300021]
[1748931049853,1.142,666.82,666.62,0.300021]
[1748931050454,0.90968146,666.81,666.62,0.300021]
[1748931050756,1.142,666.82,666.62,0.300021]
[1748931050955,0.90968128,666.81,666.62,0.300021]
[1748931051154,0.90968128,666.8,666.62,0.300021]
[1748931051359,1.142,666.82,666.62,0.300021]
[1748931052656,0.90975944,666.81,666.62,0.300021]
[1748931052860,1.142,666.82,666.62,0.300021]
[1748931053255,0.90976427,666.81,666.62,0.300021]
[1748931053458,1.142,666.82,666.62,0.300021]
[1748931054055,0.90975883,666.81,666.62,0.300021]
[1748931054254,1.142,666.82,666.62,0.300021]
[1748931055262,0.90920014,666.81,666.62,0.300021]
[1748931055462,0.90920014,666.8,666.62,0.300021]
[1748931055659,1.142,666.82,666.62,0.300021]
[1748931056058,0.90919289,666.81,666.62,0.300021]
[1748931056260,0.90919424,666.8,666.62,0.300021]
[1748931056457,1.142,666.82,666.62,0.300021]
[1748931057960,0.90870832,666.81,666.62,0.300021]
[1748931058161,1.142,666.82,666.62,0.300021]
[1748931058562,0.90870832,666.81,666.62,0.300021]
[1748931058861,0.90870832,666.8,666.62,0.300021]
[1748931059065,0.90659901,666.79,666.62,0.300021]
[1748931059265,1.142,666.82,666.62,0.300021]
[1748931059467,0.90659894,666.81,666.62,0.300021]
[1748931059662,0.90659894,666.8,666.62,0.300021]
[1748931059869,0.90660019,666.79,666.62,0.300021]
[1748931060162,1.142,666.82,666.62,0.300021]
[1748931060361,0.90660177,666.81,666.62,0.300021]
[1748931060567,1.142,666.82,666.62,0.300021]
[1748931060764,0.90660035,666.81,666.62,0.300021]
[1748931061069,1.142,666.82,666.62,0.300021]
[1748931061667,0.90657231,666.81,666.62,0.300021]
[1748931061863,1.142,666.82,666.62,0.300021]
[1748931062261,0.90657245,666.81,666.62,0.300021]
[1748931062463,0.90657863,666.8,666.62,0.300021]
[1748931062667,1.142,666.82,666.62,0.300021]
[1748931063566,0.9065779,666.81,666.62,0.300021]
[1748931063763,1.142,666.82,666.62,0.300021]
[1748931064766,0.90658058,666.81,666.62,0.300021]
[1748931064967,1.142,666.82,666.62,0.300021]
[1748931065872,0.90660412,666.81,666.62,0.300021]
[1748931066069,1.142,666.82,666.62,0.300021]
[1748931066665,0.90660199,666.81,666.62,0.300021]
[1748931066868,1.142,666.82,666.62,0.300021]
[1748931067071,0.90660199,666.81,666.62,0.300021]
[1748931067274,0.90660199,666.8,666.62,0.300021]
[1748931067571,0.90660199,666.79,666.62,0.300021]
[1748931067770,0.90660199,666.78,666.62,0.300021]
[1748931067971,0.9066,666.77,666.62,0.300021]
[1748931068166,1.142,666.82,666.62,0.300021]
[1748931068566,0.90659931,666.81,666.62,0.300021]
[1748931068774,1.142,666.82,666.62,0.300021]
[1748931069880,0.90647239,666.81,666.62,0.300021]
[1748931070072,2.63530965,666.82,666.62,0.300021]
[1748931070579,0.90647457,666.81,666.62,0.300021]
[1748931070780,0.90647457,666.8,666.62,0.300021]
[1748931070972,1.142,666.82,666.62,0.300021]
[1748931071173,0.90647457,666.81,666.62,0.300021]
[1748931071374,1.142,666.82,666.62,0.300021]
[1748931071577,0.90647322,666.81,666.62,0.300021]
[1748931071777,0.90647322,666.8,666.62,0.300021]
[1748931071977,2.40275131,666.83,666.62,0.300021]
[1748931072374,1.49330965,666.82,666.62,0.300021]
[1748931072683,0.90648101,666.81,666.62,0.300021]
[1748931072877,0.90647322,666.82,666.62,0.300021]
[1748931073074,0.90665078,666.81,666.62,0.300021]
[1748931073279,2.39978287,666.82,666.62,0.300021]
[1748931074383,1.49330965,666.81,666.62,0.300021]
[1748931074684,0.9066581,666.8,666.62,0.300021]
[1748931074882,1.49330965,666.8,666.62,0.300021]
[1748931075077,0.90665098,666.79,666.62,0.300021]
[1748931075382,0.90665524,666.78,666.62,0.300021]
[1748931075583,0.90669776,666.77,666.62,0.300021]
[1748931075785,1.073,666.77,666.62,0.300021]
[1748931075986,0.90669752,666.76,666.62,0.300021]
[1748931076284,1.073,666.77,666.62,0.300021]
[1748931076484,0.90669353,666.76,666.62,0.300021]
[1748931076685,0.90669384,666.75,666.62,0.300021]
[1748931076885,1.073,666.77,666.62,0.300021]
[1748931078387,0.90669503,666.76,666.62,0.300021]
[1748931078589,0.90669503,666.75,666.62,0.300021]
[1748931078887,1.073,666.77,666.62,0.300021]
[1748931079480,0.90672971,666.76,666.62,0.300021]
[1748931079684,0.90672727,666.75,666.62,0.300021]
[1748931079885,0.90672727,666.74,666.62,0.300021]
[1748931080086,1.073,666.77,666.62,0.300021]
[1748931080283,0.90672661,666.76,666.62,0.300021]
[1748931080486,1.073,666.77,666.62,0.300021]
[1748931081086,0.90673729,666.76,666.62,0.300021]
[1748931081386,0.90673729,666.75,666.62,0.300021]
[1748931081687,0.90674372,666.74,666.62,0.300021]
[1748931081988,1.073,666.77,666.62,0.300021]
[1748931082883,0.90673215,666.76,666.62,0.300021]
[1748931083087,1.073,666.77,666.62,0.300021]
[1748931083888,0.90672575,666.76,666.62,0.300021]
[1748931084086,1.073,666.77,666.62,0.300021]
[1748931087491,0.9076613,666.76,666.62,0.300021]
[1748931087693,0.9076613,666.75,666.62,0.300021]
[1748931087887,1.073,666.77,666.62,0.300021]
[1748931088587,0.90766033,666.76,666.62,0.300021]
[1748931088786,0.90766033,666.75,666.62,0.300021]
[1748931088988,1.073,666.77,666.62,0.300021]
[1748931089192,0.90766033,666.76,666.62,0.300021]
[1748931089388,1.073,666.77,666.62,0.300021]
[1748931089991,0.90765903,666.76,666.62,0.300021]
[1748931090187,1.073,666.77,666.62,0.300021]
[1748931091295,0.90808647,666.76,666.62,0.300021]
[1748931091488,0.90808647,666.75,666.62,0.300021]
[1748931091689,0.90808647,666.74,666.62,0.300021]
[1748931091893,0.90808647,666.73,666.62,0.300021]
[1748931092395,1.073,666.77,666.62,0.300021]
[1748931095298,0.90967583,666.76,666.62,0.300021]
[1748931095491,1.073,666.77,666.62,0.300021]
[1748931096692,0.90967717,666.76,666.62,0.300021]
[1748931096898,1.073,666.77,666.62,0.300021]
[1748931098403,0.90942247,666.76,666.62,0.300021]
[1748931098697,1.073,666.77,666.62,0.300021]
[1748931099901,0.90942142,666.76,666.62,0.300021]
[1748931100101,1.073,666.77,666.62,0.300021]
[1748931100302,0.90943473,666.76,666.62,0.300021]
[1748931100495,1.073,666.77,666.62,0.300021]
[1748931101001,0.90943575,666.76,666.62,0.300021]
[1748931101193,1.073,666.77,666.62,0.300021]
[1748931103195,0.90967325,666.76,666.62,0.300021]
[1748931103399,0.90967325,666.75,666.62,0.300021]
[1748931103595,1.073,666.77,666.62,0.300021]
[1748931104603,0.9096746,666.76,666.62,0.300021]
[1748931104797,0.90647322,666.82,666.62,0.300021]
[1748931106302,0.90967417,666.81,666.62,0.300021]
[1748931106602,0.90647322,666.82,666.62,0.300021]
[1748931106797,0.90967424,666.81,666.62,0.300021]
[1748931106999,0.90647322,666.82,666.62,0.300021]
[1748931107398,0.90967559,666.81,666.62,0.300021]
[1748931107705,0.90647322,666.82,666.62,0.300021]
[1748931107996,1.06,666.8,666.62,0.300021]
[1748931109102,0.9096733,666.79,666.62,0.300021]
[1748931109297,0.90967431,666.78,666.62,0.300021]
[1748931109501,1.06,666.8,666.62,0.300021]
[1748931110402,0.90967566,666.79,666.62,0.300021]
[1748931110600,1.06,666.8,666.62,0.300021]
[1748931111600,0.90967326,666.79,666.62,0.300021]
[1748931111799,0.90967326,666.78,666.62,0.300021]
[1748931111996,0.9096735,666.77,666.62,0.300021]
[1748931112201,1.06,666.8,666.62,0.300021]
[1748931112802,0.90967833,666.79,666.62,0.300021]
[1748931113106,1.06,666.8,666.62,0.300021]
[1748931113698,0.90967626,666.79,666.62,0.300021]
[1748931113999,0.90967584,666.78,666.62,0.300021]
[1748931114203,1.06,666.8,666.62,0.300021]
[1748931114599,0.90967519,666.79,666.62,0.300021]
[1748931114803,1.06,666.8,666.62,0.300021]
[1748931115004,0.90967519,666.79,666.62,0.300021]
[1748931115197,1.06,666.8,666.62,0.300021]
[1748931115403,0.90967534,666.79,666.62,0.300021]
[1748931115604,1.06,666.8,666.62,0.300021]
[1748931115800,0.90969922,666.79,666.62,0.300021]
[1748931116006,1.06,666.8,666.62,0.300021]
[1748931116708,0.909695,666.79,666.62,0.300021]
[1748931116908,0.909695,666.78,666.62,0.300021]
[1748931117104,0.909695,666.77,666.62,0.300021]
[1748931117305,1.06,666.8,666.62,0.300021]
[1748931118205,0.90969801,666.79,666.62,0.300021]
[1748931118403,1.06,666.8,666.62,0.300021]
[1748931119608,0.90991998,666.79,666.62,0.300021]
[1748931119802,0.90991989,666.78,666.62,0.300021]
[1748931120009,0.90991989,666.77,666.62,0.300021]
[1748931120207,1.06,666.8,666.62,0.300021]
[1748931120409,0.90991729,666.79,666.62,0.300021]
[1748931120606,1.06,666.8,666.62,0.300021]
[1748931121110,0.90991435,666.79,666.62,0.300021]
[1748931121311,1.06,666.8,666.62,0.300021]
[1748931121708,0.90991714,666.79,666.62,0.300021]
[1748931121904,1.06,666.8,666.62,0.300021]
[1748931123113,0.90991018,666.79,666.62,0.300021]
[1748931123305,1.06,666.8,666.62,0.300021]
[1748931124213,0.90991027,666.79,666.62,0.300021]
[1748931124411,2.39978287,666.82,666.62,0.300021]
[1748931124805,1.49330965,666.81,666.62,0.300021]
[1748931125005,1.49330965,666.8,666.62,0.300021]
[1748931125410,0.9099068,666.79,666.62,0.300021]
[1748931125608,1.49330965,666.8,666.62,0.300021]
[1748931125810,0.91059035,666.79,666.62,0.300021]
[1748931126005,1.49330965,666.8,666.62,0.300021]
[1748931126006,0.91058906,666.78,666.62,0.300021]
[1748931126207,1.49330965,666.8,666.62,0.300021]
[1748931127211,0.91059014,666.79,666.62,0.300021]
[1748931127514,0.91059014,666.78,666.62,0.300021]
[1748931127714,1.181,666.79,666.62,0.300021]
[1748931128608,0.91059015,666.78,666.62,0.300021]
[1748931128808,1.181,666.79,666.62,0.300021]
[1748931129214,0.91061281,666.78,666.62,0.300021]
[1748931129414,0.91065429,666.77,666.62,0.300021]
[1748931129614,2.67430965,666.79,666.62,0.300021]
[1748931129810,1.49330965,666.78,666.62,0.300021]
[1748931130516,0.91019905,666.77,666.62,0.300021]
[1748931130711,0.9102004,666.76,666.62,0.300021]
[1748931130911,2.67430965,666.79,666.62,0.300021]
[1748931131316,0.91019905,666.78,666.62,0.300021]
[1748931131515,2.67430965,666.79,666.62,0.300021]
[1748931132318,1.181,666.79,666.62,0.300021]
[1748931134013,0.909567,666.78,666.62,0.300021]
[1748931134211,1.181,666.79,666.62,0.300021]
[1748931134713,0.90956695,666.78,666.62,0.300021]
[1748931134915,1.181,666.79,666.62,0.300021]
[1748931135419,1.36299639,666.78,666.62,0.300021]
[1748931135618,1.181,666.79,666.62,0.300021]
[1748931135619,0.90956122,666.77,666.62,0.300021]
[1748931135919,1.181,666.79,666.62,0.300021]
[1748931136117,0.90956122,666.78,666.62,0.300021]
[1748931136420,1.181,666.79,666.62,0.300021]
[1748931136913,0.90956137,666.78,666.62,0.300021]
[1748931137217,1.181,666.79,666.62,0.300021]
[1748931137611,0.90962665,666.78,666.62,0.300021]
[1748931137918,1.181,666.79,666.62,0.300021]
[1748931138317,2.67430965,666.79,666.62,0.300021]
[1748931138914,1.49330965,666.78,666.62,0.300021]
[1748931139111,2.67430965,666.79,666.62,0.300021]
[1748931139313,0.90962179,666.78,666.62,0.300021]
[1748931139513,0.90744224,666.77,666.62,0.300021]
[1748931139717,1.181,666.79,666.62,0.300021]
[1748931140114,0.90744216,666.78,666.62,0.300021]
[1748931140316,1.181,666.79,666.62,0.300021]
[1748931141318,0.9076336,666.78,666.62,0.300021]
[1748931141515,1.181,666.79,666.62,0.300021]
[1748931142211,0.90763311,666.78,666.62,0.300021]
[1748931142413,2.67430965,666.79,666.62,0.300021]
[1748931142814,1.181,666.79,666.62,0.300021]
[1748931143221,2.67430965,666.79,666.62,0.300021]
[1748931143622,1.181,666.79,666.62,0.300021]
[1748931143822,0.90774595,666.78,666.62,0.300021]
[1748931144021,1.181,666.79,666.62,0.300021]
[1748931145221,0.45240551,666.78,666.62,0.300021]
[1748931145421,1.181,666.79,666.62,0.300021]
[1748931146216,1.94571465,666.78,666.62,0.300021]
[1748931146420,0.90786415,666.77,666.62,0.300021]
[1748931146622,1.49330965,666.78,666.62,0.300021]
[1748931148320,0.90782176,666.77,666.62,0.300021]
[1748931148521,1.49330965,666.79,666.62,0.300021]
[1748931148522,0.90782025,666.76,666.62,0.300021]
[1748931148725,0.90782025,666.75,666.62,0.300021]
[1748931148926,0.90782032,666.74,666.62,0.300021]
[1748931149125,1.161,666.75,666.62,0.300021]
[1748931151328,0.91000204,666.74,666.62,0.300021]
[1748931151528,1.161,666.75,666.62,0.300021]
[1748931151729,0.45349139,666.74,666.62,0.300021]
[1748931151930,0.91008753,666.73,666.62,0.300021]
[1748931152229,0.45349374,666.72,666.62,0.300021]
[1748931152424,1.36358563,666.71,666.62,0.300021]
[1748931152631,1.161,666.75,666.62,0.300021]
[1748931152824,0.91009214,666.74,666.62,0.300021]
[1748931153024,1.161,666.75,666.62,0.300021]
[1748931153423,1.49330965,666.71,666.62,0.300021]
[1748931153630,1.49330965,666.69,666.62,0.300021]
[1748931155030,1.49330965,666.7,666.62,0.300021]
[1748931155534,1.49330965,666.69,666.62,0.300021]
[1748931156031,1.49330965,666.68,666.62,0.300021]
[1748931156430,0.91002175,666.67,666.62,0.300021]
[1748931156628,1.49330965,666.67,666.62,0.300021]
[1748931156832,0.91002079,666.66,666.62,0.300021]
[1748931157033,1.49330965,666.67,666.62,0.300021]
[1748931157232,0.91002079,666.66,666.62,0.300021]
[1748931157426,0.91002079,666.65,666.62,0.300021]
[1748931157634,0.91000082,666.64,666.62,0.300021]
[1748931157933,1.49330965,666.67,666.62,0.300021]
[1748931161231,0.90999933,666.66,666.62,0.300021]
[1748931161837,1.49330965,666.67,666.62,0.300021]
[1748931164134,0.90978802,666.66,666.62,0.300021]
[1748931164434,0.90978802,666.65,666.62,0.300021]
[1748931164641,1.49330965,666.67,666.62,0.300021]
[1748931164936,1.49330965,666.66,666.62,0.300021]
[1748931165738,0.90978795,666.65,666.62,0.300021]
[1748931165938,1.49330965,666.66,666.62,0.300021]
[1748931166138,0.90978788,666.65,666.62,0.300021]
[1748931166339,1.49330965,666.66,666.62,0.300021]
[1748931166934,1.49330965,666.67,666.62,0.300021]
[1748931167132,0.90978788,666.65,666.62,0.300021]
[1748931167336,1.49330965,666.67,666.62,0.300021]
[1748931167835,1.49330965,666.66,666.62,0.300021]
[1748931168038,0.91008646,666.65,666.62,0.300021]
[1748931168237,0.91008646,666.64,666.62,0.300021]
[1748931168442,1.49330965,666.66,666.62,0.300021]
[1748931168739,1.49330965,666.67,666.62,0.300021]
[1748931168933,1.49330965,666.68,666.62,0.300021]
[1748931169138,1.161,666.75,666.62,0.300021]
[1748931169535,0.91001555,666.74,666.62,0.300021]
[1748931169739,1.161,666.75,666.62,0.300021]
[1748931170943,0.91000518,666.74,666.62,0.300021]
[1748931171137,1.161,666.75,666.62,0.300021]
[1748931171339,0.91000422,666.74,666.62,0.300021]
[1748931171540,1.161,666.75,666.62,0.300021]
[1748931172142,0.91019471,666.74,666.62,0.300021]
[1748931172343,1.161,666.75,666.62,0.300021]
[1748931172944,0.91019471,666.74,666.62,0.300021]
[1748931173139,1.161,666.75,666.62,0.300021]
[1748931173540,0.91019336,666.74,666.62,0.300021]
[1748931173745,1.161,666.75,666.62,0.300021]
[1748931173947,0.91019336,666.73,666.62,0.300021]
[1748931174141,0.91019336,666.72,666.62,0.300021]
[1748931174346,0.91019336,666.73,666.62,0.300021]
[1748931174347,0.91019336,666.71,666.62,0.300021]
[1748931174547,0.91019576,666.7,666.62,0.300021]
[1748931174745,0.91019575,666.69,666.62,0.300021]
[1748931174941,0.91019336,666.73,666.62,0.300021]
[1748931175742,0.91025865,666.72,666.62,0.300021]
[1748931175942,0.91019336,666.73,666.62,0.300021]
[1748931176144,0.9102573,666.72,666.62,0.300021]
[1748931176343,0.91019336,666.73,666.62,0.300021]
[1748931177145,0.91025204,666.72,666.62,0.300021]
[1748931177347,0.91019336,666.73,666.62,0.300021]
[1748931177948,0.91021103,666.72,666.62,0.300021]
[1748931178142,0.91019336,666.73,666.62,0.300021]
[1748931180949,0.91022774,666.72,666.62,0.300021]
[1748931181150,0.91019336,666.73,666.62,0.300021]
[1748931182050,0.91029296,666.72,666.62,0.300021]
[1748931182250,0.91019336,666.73,666.62,0.300021]
[1748931182450,0.91029274,666.72,666.62,0.300021]
[1748931182644,0.91019336,666.73,666.62,0.300021]
[1748931182844,0.91029255,666.72,666.62,0.300021]
[1748931183050,0.91019336,666.73,666.62,0.300021]
[1748931183955,0.91029139,666.72,666.62,0.300021]
[1748931184152,0.91023037,666.71,666.62,0.300021]
[1748931184447,0.91019336,666.73,666.62,0.300021]
[1748931185547,0.91021675,666.72,666.62,0.300021]
[1748931185748,0.91019336,666.73,666.62,0.300021]
[1748931188355,0.91021579,666.72,666.62,0.300021]
[1748931188654,0.91019336,666.73,666.62,0.300021]
[1748931189556,0.91030239,666.72,666.62,0.300021]
[1748931189855,0.91030239,666.71,666.62,0.300021]
[1748931190055,0.91019336,666.73,666.62,0.300021]
[1748931190956,0.91051526,666.72,666.62,0.300021]
[1748931191158,0.91019336,666.73,666.62,0.300021]
[1748931192252,0.9105166,666.72,666.62,0.300021]
[1748931193159,0.91019336,666.73,666.62,0.300021]
[1748931194753,0.91015288,666.72,666.62,0.300021]
[1748931194955,0.91015288,666.71,666.62,0.300021]
[1748931195259,0.91019336,666.73,666.62,0.300021]
[1748931195461,0.91015437,666.72,666.62,0.300021]
[1748931195662,0.91015398,666.71,666.62,0.300021]
[1748931195864,0.91019336,666.73,666.62,0.300021]
[1748931197159,0.91011175,666.72,666.62,0.300021]
[1748931197357,0.91019336,666.73,666.62,0.300021]
[1748931197758,0.91011175,666.72,666.62,0.300021]
[1748931197959,0.91019336,666.73,666.62,0.300021]
[1748931198159,0.91011175,666.72,666.62,0.300021]
[1748931198357,0.91019336,666.73,666.62,0.300021]
[1748931198862,0.91011182,666.72,666.62,0.300021]
[1748931199062,0.91019336,666.73,666.62,0.300021]
[1748931200363,0.90998329,666.72,666.62,0.300021]